lending/lending_fUSD_20260209
["ID","MTS","AMOUNT","RATE_DAILY","PERIOD"]
[404843542,1770613879398,-500.0,0.00044356,120]
[404843543,1770613879408,-500.0,0.00044356,120]
[404843544,1770613879418,-500.0,0.00044356,120]
[404843545,1770613879428,-501.79487724,0.00044356,120]
[404843546,1770613879437,-500.0,0.00044356,120]
[404843547,1770613879447,-500.0,0.00044356,120]
[404843548,1770613879457,-500.0,0.00044356,120]
[404843549,1770613879468,-500.0,0.00044356,120]
[404843550,1770613879478,-500.0,0.00044356,120]
[404843551,1770613879491,-500.0,0.00044356,120]
[404843552,1770613879501,-500.0,0.00044356,120]
[404843553,1770613879511,-500.0,0.00044356,120]
[404843554,1770613879522,-500.0,0.00044356,120]
[404843555,1770613879532,-500.0,0.00044356,120]
[404843556,1770613879542,-500.0,0.00044356,120]
[404843557,1770613879552,-547.14499085,0.00044356,120]
[404843558,1770613879562,-500.0,0.00044356,120]
[404843559,1770613879572,-500.0,0.00044356,120]
[404843560,1770613879583,-500.0,0.00044356,120]
[404843561,1770613879593,-269.41990479,0.00044356,120]
[404843562,1770613879603,-500.0,0.00044356,120]
[404843563,1770613879613,-525.84236255,0.00044356,120]
[404843564,1770613879623,-500.0,0.00044356,120]
[404843565,1770613879633,-503.03463006,0.00044356,120]
[404843566,1770613879643,-503.41025338,0.00044356,120]
[404843567,1770613879653,-500.0,0.00044356,120]
[404843568,1770613879663,-500.0,0.00044356,120]
[404843569,1770613879673,-500.0,0.00044356,120]
[404843570,1770613879683,-500.0,0.00044356,120]
[404843571,1770613879692,-500.0,0.00044356,120]
[404843572,1770613879701,-500.0,0.00044356,120]
[404843573,1770613879711,-500.0,0.00044356,120]
[404843574,1770613879725,-522.96334862,0.00044356,120]
[404843575,1770613879735,-614.42671633,0.00044356,120]
[404843576,1770613879746,-500.0,0.00044356,120]
[404843577,1770613879755,-500.0,0.00044356,120]
[404843578,1770613879765,-500.0,0.00044356,120]
[404843579,1770613879774,-500.0,0.00044356,120]
[404843580,1770613879784,-500.0,0.00044356,120]
[404843581,1770613879794,-500.0,0.00044356,120]
[404843582,1770613879803,-500.0,0.00044356,120]
[404843583,1770613879814,-506.31359341,0.00044356,120]
[404843584,1770613879824,-569.54047467,0.00044356,120]
[404843585,1770613879834,-500.0,0.00044356,120]
[404843586,1770613879843,-541.55406663,0.00044356,120]
[404843587,1770613879853,-500.0,0.00044356,120]
[404843588,1770613879863,-500.0,0.00044356,120]
[404843589,1770613879872,-514.65197657,0.00044356,120]
[404843590,1770613879881,-500.0,0.00044356,120]
[404843591,1770613879891,-500.0,0.00044356,120]
[404843592,1770613879901,-500.0,0.00044356,120]
[404843593,1770613879910,-500.0,0.00044356,120]
[404843594,1770613879920,-500.0,0.00044356,120]
[404843595,1770613879930,-528.66230993,0.00044356,120]
[404843596,1770613879939,-222.507717,0.00044356,120]
[404843597,1770613879949,-500.0,0.00044356,120]
[404843598,1770613879959,-500.0,0.00044356,120]
[404843599,1770613879968,-500.0,0.00044356,120]
[404843600,1770613879978,-500.0,0.00044356,120]
[404843601,1770613879988,-192.50041492,0.00044356,120]
[404843602,1770613879999,-241.12213845,0.00044356,120]
[404843603,1770613880008,-505.43228642,0.00044356,120]
[404843604,1770613880018,-500.0,0.00044356,120]
[404843605,1770613880028,-500.0,0.00044356,120]
[404843606,1770613880038,-500.0,0.00044356,120]
[404843607,1770613880049,-500.0,0.00044356,120]
[404843608,1770613880059,-500.0,0.00044356,120]
[404843609,1770613880069,-500.0,0.00044356,120]
[404843610,1770613880083,-152.80971759,0.00044356,120]
[404843611,1770613880093,-500.0,0.00044356,120]
[404843612,1770613880103,-500.0,0.00044356,120]
[404843613,1770613880113,-520.47143249,0.00044356,120]
[404843614,1770613880123,-532.54495413,0.00044356,120]
[404843615,1770613880132,-505.68117292,0.00044356,120]
[404843616,1770613880142,-500.0,0.00044356,120]
[404843617,1770613880152,-500.0,0.00044356,120]
[404843618,1770613880162,-500.0,0.00044356,120]
[404843619,1770613880173,-500.0,0.00044356,120]
[404843620,1770613880182,-500.0,0.00044356,120]
[404843621,1770613880192,-500.0,0.00044356,120]
[404843622,1770613880202,-561.77460872,0.00044356,120]
[404843623,1770613880212,-495.45081441,0.00044356,120]
[404843624,1770613880222,-500.0,0.00044356,120]
[404843625,1770613880231,-502.96,0.00044356,120]
[404843626,1770613880241,-500.0,0.00044356,120]
[404843627,1770613880251,-515.12516733,0.00044356,120]
[404843628,1770613880261,-500.0,0.00044356,120]
[404843629,1770613880271,-500.0,0.00044356,120]
[404843630,1770613880280,-500.0,0.00044356,120]
[404843631,1770613880290,-534.28136763,0.00044356,120]
[404843632,1770613880300,-500.0,0.00044356,120]
[404843633,1770613880309,-507.54331272,0.00044356,120]
[404843634,1770613880319,-500.0,0.00044356,120]
[404843635,1770613880329,-500.0,0.00044356,120]
[404843636,1770613880342,-500.0,0.00044356,120]
[404843637,1770613880355,-638.04489357,0.00044356,120]
[404843638,1770613880365,-500.0,0.00044356,120]
[404843639,1770613880375,-524.55950043,0.00044356,120]
[404843640,1770613880386,-500.0,0.00044356,120]
[404843641,1770613880395,-500.0,0.00044356,120]
[404843642,1770613880405,-500.0,0.00044356,120]
[404843643,1770613880415,-515.93881037,0.00044356,120]
[404843644,1770613880424,-500.0,0.00044356,120]
[404843645,1770613880434,-500.0,0.00044356,120]
[404843646,1770613880444,-500.0,0.00044356,120]
[404843647,1770613880458,-500.0,0.00044356,120]
[404843648,1770613880471,-500.0,0.00044356,120]
[404843649,1770613880482,-500.0,0.00044356,120]
[404843650,1770613880492,-500.0,0.00044356,120]
[404843651,1770613880502,-500.0,0.00044356,120]
[404843652,1770613880513,-500.0,0.00044356,120]
[404843653,1770613880522,-398.1415303,0.00044356,120]
[404843654,1770613880532,-500.0,0.00044356,120]
[404843655,1770613880543,-511.72813912,0.00044356,120]
[404843656,1770613880552,-500.0,0.00044356,120]
[404843657,1770613880562,-182.30708756,0.00044356,120]
[404843658,1770613880572,-500.0,0.00044356,120]
[404843659,1770613880581,-500.0,0.00044356,120]
[404843660,1770613880591,-513.53541824,0.00044356,120]
[404843661,1770613880600,-500.0,0.00044356,120]
[404843662,1770613880610,-500.0,0.00044356,120]
[404843663,1770613880619,-500.0,0.00044356,120]
[404843664,1770613880628,-500.0,0.00044356,120]
[404843665,1770613880638,-500.0,0.00044356,120]
[404843666,1770613880647,-529.49800245,0.00044356,120]
[404843667,1770613880660,-537.17972543,0.00044356,120]
[404843668,1770613880670,-500.0,0.00044356,120]
[404843669,1770613880679,-583.64123887,0.00044356,120]
[404843670,1770613880689,-500.0,0.00044356,120]
[404843671,1770613880699,-500.0,0.00044356,120]
[404843672,1770613880708,-500.0,0.00044356,120]
[404843673,1770613880718,-500.0,0.00044356,120]
[404843674,1770613880730,-500.0,0.00044356,120]
[404843675,1770613880740,-500.0,0.00044356,120]
[404843676,1770613880750,-500.0,0.00044356,120]
[404843677,1770613880761,-500.0,0.00044356,120]
[404843678,1770613880771,-500.0,0.00044356,120]
[404843679,1770613880780,-500.0,0.00044356,120]
[404843680,1770613880791,-500.0,0.00044356,120]
[404843681,1770613880801,-500.0,0.00044356,120]
[404843682,1770613880813,-388.19280883,0.00044356,120]
[404843683,1770613880822,-510.60080135,0.00044356,120]
[404843684,1770613880832,-500.0,0.00044356,120]
[404843685,1770613880841,-517.96488793,0.00044356,120]
[404843686,1770613880855,-500.0,0.00044356,120]
[404843687,1770613880866,-500.0,0.00044356,120]
[404843688,1770613880877,-500.0,0.00044356,120]
[404843689,1770613880888,-500.0,0.00044356,120]
[404843690,1770613880898,-500.0,0.00044356,120]
[404843691,1770613880909,-500.0,0.00044356,120]
[404843692,1770613880919,-592.94392877,0.00044356,120]
[404843693,1770613880929,-626.34506323,0.00044356,120]
[404843694,1770613880939,-500.0,0.00044356,120]
[404843695,1770613880949,-500.0,0.00044356,120]
[404843696,1770613880959,-500.0,0.00044356,120]
[404843697,1770613880969,-500.0,0.00044356,120]
[404843698,1770613880979,-500.0,0.00044356,120]
[404843699,1770613880989,-500.0,0.00044356,120]
[404843700,1770613880999,-500.0,0.00044356,120]
[404843701,1770613881008,-500.0,0.00044356,120]
[404843702,1770613881018,-500.0,0.00044356,120]
[404843703,1770613881028,-500.0,0.00044356,120]
[404843704,1770613881038,-500.0,0.00044356,120]
[404843705,1770613881050,-500.0,0.00044356,120]
[404843706,1770613881060,-500.0,0.00044356,120]
[404843707,1770613881070,-500.0,0.00044356,120]
[404843708,1770613881079,-500.0,0.00044356,120]
[404843709,1770613881089,-625.15940479,0.00044356,120]
[404843710,1770613881099,-500.0,0.00044356,120]
[404843711,1770613881108,-500.0,0.00044356,120]
[404843712,1770613881118,-500.0,0.00044356,120]
[404843713,1770613881127,-500.0,0.00044356,120]
[404843714,1770613881136,-508.24338532,0.00044356,120]
[404843715,1770613881146,-413.92487196,0.00044356,120]
[404843716,1770613881155,-549.13508192,0.00044356,120]
[404843717,1770613881165,-500.0,0.00044356,120]
[404843718,1770613881174,-500.0,0.00044356,120]
[404843719,1770613881184,-512.29052324,0.00044356,120]
[404843720,1770613881193,-500.0,0.00044356,120]
[404843721,1770613881203,-579.16397869,0.00044356,120]
[404843722,1770613881213,-500.0,0.00044356,60]
[404843723,1770613881222,-500.0,0.00044356,60]
[404843724,1770613881234,-529.10154186,0.00044356,120]
[404843725,1770613881244,-500.0,0.00044356,120]
[404843726,1770613881253,-500.0,0.00044356,120]
[404843727,1770613881263,-642.83324971,0.00044356,120]
[404843728,1770613881273,-590.57477224,0.00044356,120]
[404843729,1770613881283,-500.0,0.00044356,120]
[404843730,1770613881293,-547.5850984,0.00044356,120]
[404843731,1770613881303,-500.0,0.00044356,120]
[404843732,1770613881314,-500.0,0.00044356,120]
[404843733,1770613881323,-500.0,0.00044356,120]
[404843734,1770613881333,-500.0,0.00044356,120]
[404843735,1770613881343,-543.74,0.00044356,120]
[404843736,1770613881353,-500.0,0.00044356,120]
[404843737,1770613881363,-500.0,0.00044356,120]
[404843738,1770613881374,-543.74,0.00044356,120]
[404843739,1770613881384,-500.0,0.00044356,120]
[404843740,1770613881394,-500.0,0.00044356,120]
[404843741,1770613881403,-543.74,0.00044356,120]
[404843742,1770613881413,-500.0,0.00044356,120]
[404843743,1770613881424,-500.0,0.00044356,120]
[404843744,1770613881443,-500.0,0.00044356,120]
[404843745,1770613881455,-543.74,0.00044356,120]
[404843746,1770613881465,-500.0,0.00044356,120]
[404843747,1770613881476,-500.0,0.00044356,120]
[404843748,1770613881489,-500.0,0.00044356,120]
[404843749,1770613881500,-543.74,0.00044356,120]
[404843750,1770613881511,-500.0,0.00044356,120]
[404843751,1770613881521,-500.0,0.00044356,120]
[404843752,1770613881532,-500.0,0.00044356,120]
[404843753,1770613881542,-543.74,0.00044356,120]
[404843754,1770613881551,-500.0,0.00044356,120]
[404843755,1770613881564,-567.68000503,0.00044356,120]
[404843756,1770613881574,-500.0,0.00044356,120]
[404843757,1770613881584,-500.0,0.00044356,120]
[404843758,1770613881593,-543.74,0.00044356,120]
[404843759,1770613881603,-500.0,0.00044356,120]
[404843760,1770613881613,-500.0,0.00044356,120]
[404843761,1770613881622,-500.0,0.00044356,120]
[404843762,1770613881632,-500.0,0.00044356,120]
[404843763,1770613881642,-543.74,0.00044356,120]
[404843764,1770613881652,-500.0,0.00044356,120]
[404843765,1770613881661,-252.99957833,0.00044356,120]
[404843766,1770613881671,-500.0,0.00044356,120]
[404843767,1770613881680,-543.74,0.00044356,120]
[404843768,1770613881690,-288.20737668,0.00044356,120]
[404843769,1770613881700,-500.0,0.00044356,120]
[404843770,1770613881710,-543.74,0.00044356,120]
[404843771,1770613881719,-500.0,0.00044356,120]
[404843772,1770613881729,-543.74,0.00044356,120]
[404843773,1770613881739,-500.0,0.00044356,120]
[404843774,1770613881748,-543.74,0.00044356,120]
[404843775,1770613881758,-500.0,0.00044356,120]
[404843776,1770613881767,-543.74,0.00044356,120]
[404843777,1770613881777,-500.0,0.00044356,120]
[404843778,1770613881786,-543.74,0.00044356,120]
[404843779,1770613881796,-500.0,0.00044356,120]
[404843780,1770613881805,-543.74,0.00044356,120]
[404843781,1770613881817,-500.0,0.00044356,120]
[404843782,1770613881831,-543.74,0.00044356,120]
[404843783,1770613881841,-500.0,0.00044356,120]
[404843784,1770613881851,-500.0,0.00044356,120]
[404843785,1770613881861,-543.74,0.00044356,120]
[404843786,1770613881870,-500.0,0.00044356,120]
[404843787,1770613881880,-500.0,0.00044356,120]
[404843788,1770613881890,-500.0,0.00044356,120]
[404843789,1770613881900,-543.74,0.00044356,120]
[404843790,1770613881911,-500.0,0.00044356,120]
[404843791,1770613881920,-500.0,0.00044356,120]
[404843792,1770613881930,-500.0,0.00044356,120]
[404843793,1770613881941,-543.74,0.00044356,120]
[404843794,1770613881951,-500.0,0.00044356,120]
[404843795,1770613881962,-500.0,0.00044356,120]
[404843796,1770613881972,-500.0,0.00044356,120]
[404843797,1770613881983,-559.41595854,0.00044356,120]
[404843798,1770613881993,-543.74,0.00044356,120]
[404843799,1770613882003,-500.0,0.00044356,120]
[404843800,1770613882018,-500.0,0.00044356,120]
[404843801,1770613882028,-500.0,0.00044356,120]
[404843802,1770613882038,-543.74,0.00044356,120]
[404843803,1770613882048,-500.0,0.00044356,120]
[404843804,1770613882059,-500.0,0.00044356,120]
[404843805,1770613882072,-500.0,0.00044356,120]
[404843806,1770613882083,-543.74,0.00044356,120]
[404843807,1770613882093,-500.0,0.00044356,120]
[404843808,1770613882104,-500.0,0.00044356,120]
[404843809,1770613882114,-500.0,0.00044356,120]
[404843810,1770613882124,-500.0,0.00044356,120]
[404843811,1770613882135,-543.74,0.00044356,120]
[404843812,1770613882146,-500.0,0.00044356,120]
[404843813,1770613882155,-500.0,0.00044356,120]
[404843814,1770613882166,-500.0,0.00044356,120]
[404843815,1770613882177,-500.0,0.00044356,120]
[404843816,1770613882188,-543.95851336,0.00044356,120]
[404843817,1770613882198,-500.0,0.00044356,120]
[404843818,1770613882208,-500.0,0.00044356,120]
[404843819,1770613882218,-500.0,0.00044356,120]
[404843820,1770613882234,-500.0,0.00044356,120]
[404843821,1770613882464,-500.0,0.00044356,120]
[404843822,1770613882479,-500.0,0.00044356,120]
[404843823,1770613882489,-500.0,0.00044356,120]
[404843824,1770613882499,-500.0,0.00044356,120]
[404843825,1770613882511,-500.0,0.00044356,120]
[404843826,1770613882520,-583.98215519,0.00044356,120]
[404843827,1770613882529,-335.15,0.00044356,120]
[404843828,1770613882542,-500.0,0.00044356,120]
[404843829,1770613882552,-500.0,0.00044356,120]
[404843830,1770613882561,-500.0,0.00044356,120]
[404843831,1770613882572,-500.0,0.00044356,120]
[404843832,1770613882581,-500.0,0.00044356,120]
[404843833,1770613882591,-500.0,0.00044356,120]
[404843834,1770613882601,-500.0,0.00044356,120]
[404843835,1770613882614,-500.0,0.00044356,120]
[404843836,1770613882625,-500.0,0.00044356,120]
[404843837,1770613882635,-500.0,0.00044356,120]
[404843838,1770613882644,-500.0,0.00044356,120]
[404843839,1770613882656,-634.47031497,0.00044356,120]
[404843840,1770613882665,-500.0,0.00044356,120]
[404843841,1770613882678,-500.0,0.00044356,120]
[404843842,1770613882688,-500.0,0.00044356,120]
[404843843,1770613882698,-500.0,0.00044356,120]
[404843844,1770613882707,-500.0,0.00044356,120]
[404843845,1770613882717,-500.0,0.00044356,120]
[404843846,1770613882727,-512.51425571,0.00044356,120]
[404843847,1770613882739,-500.0,0.00044356,120]
[404843848,1770613882750,-565.17220773,0.00044356,120]
[404843849,1770613882760,-500.0,0.00044356,120]
[404843850,1770613882770,-500.0,0.00044356,120]
[404843851,1770613882779,-500.0,0.00044356,120]
[404843852,1770613882790,-500.0,0.00044356,120]
[404843853,1770613882800,-500.0,0.00044356,120]
[404843854,1770613882812,-500.0,0.00044356,120]
[404843855,1770613882821,-500.0,0.00044356,120]
[404843856,1770613882831,-263.19399825,0.00044356,120]
[404843857,1770613882842,-500.0,0.00044356,120]
[404843858,1770613882851,-500.0,0.00044356,120]
[404843859,1770613882862,-500.0,0.00044356,120]
[404843860,1770613882871,-552.33934211,0.00044356,120]
[404843861,1770613882880,-500.0,0.00044356,120]
[404843862,1770613882891,-278.52611262,0.00044356,120]
[404843863,1770613883623,-231.51638898,0.00044356,120]
[404843864,1770613883634,-500.0,0.00044356,120]
[404843865,1770613883644,-500.0,0.00044356,120]
[404843866,1770613883655,-500.0,0.00044356,120]
[404843867,1770613883665,-510.73027907,0.00044356,120]
[404843868,1770613883676,-500.0,0.00044356,120]
[404843869,1770613883686,-500.0,0.00044356,120]
[404843870,1770613883695,-500.0,0.00044356,120]
[404843871,1770613883705,-511.68522819,0.00044356,120]
[404843872,1770613883714,-500.0,0.00044356,120]
[404843873,1770613883724,-606.73401964,0.00044356,120]
[404843874,1770613883733,-500.0,0.00044356,120]
[404843875,1770613883743,-500.0,0.00044356,120]
[404843876,1770613883753,-500.0,0.00044356,120]
[404843877,1770613883762,-500.0,0.00044356,120]
[404843878,1770613883772,-500.0,0.00044356,120]
[404843879,1770613883782,-500.0,0.00044356,120]
[404843880,1770613883792,-500.0,0.00044356,120]
[404843881,1770613883802,-500.0,0.00044356,120]
[404843882,1770613883812,-500.0,0.00044356,120]
[404843883,1770613883822,-500.0,0.00044356,120]
[404843884,1770613883836,-197.79,0.00044356,120]
[404843885,1770613883846,-389.22290521,0.00044356,120]
[404843886,1770613883856,-517.57685299,0.00044356,120]
[404843887,1770613883866,-522.04209662,0.00044356,120]
[404843888,1770613883876,-500.0,0.00044356,120]
[404843889,1770613883886,-500.0,0.00044356,120]
[404843890,1770613883896,-500.0,0.00044356,120]
[404843891,1770613883906,-500.0,0.00044356,120]
[404843892,1770613883916,-500.0,0.00044356,120]
[404843893,1770613883925,-500.0,0.00044356,120]
[404843894,1770613883936,-500.0,0.00044356,120]
[404843895,1770613883946,-500.0,0.00044356,120]
[404843896,1770613883956,-500.0,0.00044356,120]
[404843897,1770613883965,-634.51561005,0.00044356,120]
[404843898,1770613883976,-500.0,0.00044356,120]
[404843899,1770613883987,-178.80719717,0.00044356,120]
[404843900,1770613883996,-476.32389033,0.00044356,120]
[404843901,1770613884007,-500.0,0.00044356,120]
[404843902,1770613884016,-500.0,0.00044356,120]
[404843903,1770613884026,-500.0,0.00044356,120]
[404843904,1770613884037,-500.0,0.00044356,120]
[404843905,1770613884047,-500.0,0.00044356,120]
[404843906,1770613884056,-540.22157816,0.00044356,120]
[404843907,1770613884067,-500.0,0.00044356,120]
[404843908,1770613884077,-500.0,0.00044356,120]
[404843909,1770613884087,-500.0,0.00044356,120]
[404843910,1770613884097,-500.0,0.00044356,120]
[404843911,1770613884106,-500.0,0.00044356,120]
[404843912,1770613884116,-500.0,0.00044356,120]
[404843913,1770613884126,-539.37686345,0.00044356,120]
[404843914,1770613884136,-500.0,0.00044356,120]
[404843915,1770613884146,-31.59965475,0.00044356,120]
[404843916,1770613884321,-28.91936837,0.000429,120]
[404843917,1770613884379,-124.08063163,0.000429,120]
[404843918,1770613884389,-104.68566467,0.00043773,30]
[404843919,1770613884404,-48.45712279,0.00043773,30]
[404843920,1770613884414,-153.0,0.000439,120]
[404843921,1770613884423,-92.01878053,0.00044356,120]
[404843922,1770613884462,-337.41252319,0.00041366,15]
[404843923,1770613884478,-997.7785673,0.00041366,15]
[404843924,1770613884490,-5570.45453968,0.00041366,15]
[404843925,1770613884502,-2478.61934173,0.00041366,15]
[404843926,1770614034270,1200.0,0.00035616,30]
[404843927,1770614761630,300.0,0.00017999,2]
[404843928,1770614811494,9700.01,0.000162,5]
[404843929,1770614811516,10000.01,0.000162,5]
[404843930,1770614811538,10000.01,0.000162,5]
[404843931,1770614811559,6849.29285733,0.000162,5]
[404843932,1770614823462,300.0,0.00017999,2]
[404843933,1770614831383,1000.0,0.00017999,2]
[404843934,1770614839046,500.0,0.00017999,2]
[404843935,1770614839101,500.0,0.00017999,2]
[404843936,1770614839172,192.84080211,0.00017999,2]
[404843937,1770614871939,-1000.0,0.00018,2]
[404843939,1770614950153,-5344.309754,0.00018,2]
[404843940,1770614990602,2543.11208444,0.000179,2]
[404843941,1770614999465,151.0,0.00017997,2]
[404843942,1770614999839,151.0,0.00017997,2]
[404843943,1770615001306,1200.0,0.00017999,2]
[404843944,1770615002337,227.0,0.00017999,2]
[404843945,1770615008242,8271.01,0.000179,2]
[404843946,1770615008266,10000.01,0.000179,2]
[404843947,1770615008291,10000.01,0.000179,2]
[404843948,1770615008315,10000.01,0.000179,2]
[404843949,1770615008338,2828.5412501,0.000179,2]
[404843950,1770615019257,3240.0,0.00032271,120]
[404843960,1770615031609,-40782.96950169,0.00018,2]
[404843985,1770615037636,-751518.88368563,0.00018,2]
[404843986,1770615037646,-25252.34500229,0.00018,2]
[404843987,1770615037656,-1781.49378135,0.000181,2]
[404843988,1770615037671,-1963.10853824,0.0001813,2]
[404843989,1770615037683,-1963.10853824,0.00019395,2]
[404843990,1770615037692,-1680.0,0.00019735,2]
[404843991,1770615037702,-250.0,0.000198,2]
[404843992,1770615037712,-4930.70056391,0.000199,3]
[404843993,1770615037721,-50011.85706841,0.0001999,2]
[404843994,1770615037731,-41099.58125002,0.00020344,2]
[404843995,1770615037740,-1963.10853824,0.00020661,2]
[404843996,1770615037750,-2351.0,0.00021639,2]
[404843997,1770615037759,-2543.11208439,0.00021676,2]
[404843998,1770615037768,-1963.10853824,0.00021926,2]
[404843999,1770615037777,-41099.58125002,0.00022789,2]
[404844000,1770615037787,-1963.10853824,0.00023191,2]
[404844001,1770615037796,-3292.0,0.00023727,2]
[404844002,1770615037806,-250.0,0.00023784,2]
[404844003,1770615037815,-1963.10853824,0.00024457,2]
[404844004,1770615037825,-2814.73270537,0.0002503,2]
[404844005,1770615037834,-41099.58125002,0.00025233,2]
[404844006,1770615037845,-2543.11208439,0.00025452,2]
[404844007,1770615037854,-1963.10853824,0.00025722,2]
[404844009,1770615037864,-2151.0,0.00026016,2]
[404844011,1770615037873,-1963.10853824,0.00026987,2]
[404844013,1770615037884,-41099.58125002,0.00027678,2]
[404844015,1770615037895,-2543.11208439,0.00029228,2]
[404844017,1770615037903,-1963.10853824,0.00029518,2]
[404844019,1770615037912,-170.73,0.00029566,2]
[404844021,1770615037922,-574.77684134,0.0003,4]
[404844023,1770615037932,-153.64,0.0003,2]
[404844025,1770615037941,-41099.58125002,0.00030122,2]
[404844027,1770615037951,-522.4,0.00030433,2]
[404844029,1770615037961,-1963.10853824,0.00030783,2]
[404844031,1770615037970,-522.4,0.00031707,2]
[404844033,1770615037979,-5102.17,0.00031815,2]
[404844035,1770615037989,-1963.10853824,0.00032049,2]
[404844037,1770615037998,-500.0,0.00032415,2]
[404844039,1770615038007,-510.0,0.00032616,2]
[404844041,1770615038016,-522.4,0.00032981,2]
[404844043,1770615038026,-2543.11208439,0.00033003,2]
[404844045,1770615038036,-1963.10853824,0.00033314,2]
[404844047,1770615038044,-522.4,0.00034256,5]
[404844049,1770615038054,-1963.10853824,0.00034579,2]
[404844051,1770615038063,-5360.0,0.000347,2]
[404844053,1770615038073,-150.0,0.00034904,2]
[404844055,1770615038082,-5529.0,0.000355,3]
[404844057,1770615038091,-522.4,0.0003553,5]
[404844060,1770615038101,-678.48627921,0.0003561,2]
[404844062,1770615038110,-4451.1065,0.00035671,10]
[404844063,1770615038120,-1963.10853824,0.00035845,2]
[404844066,1770615038129,-5529.0,0.000362,5]
[404844068,1770615038138,-223.12649593,0.00036236,7]
[404844070,1770615038147,-150.0,0.00036649,2]
[404844071,1770615038157,-2543.11208439,0.00036779,2]
[404844073,1770615038167,-1957.51585553,0.000368,2]
[404844075,1770615038176,-544.94,0.00036803,2]
[404844077,1770615038185,-522.4,0.00036804,7]
[404844079,1770615038195,-182.63662576,0.00036855,9]
[404844081,1770615038204,-57286.12636477,0.00036888,60]
[404844083,1770615038213,-14145.44550815,0.0003691,2]
[404844085,1770615038222,-166.66,0.00036955,30]
[404844087,1770615038231,-165.88476011,0.00037,2]
[404844089,1770615038240,-194.61,0.00037,14]
[404844091,1770615038250,-522.4,0.00038078,30]
[404844093,1770615038259,-500.0,0.00038078,30]
[404844095,1770615038268,-500.0,0.00038352,30]
[404844097,1770615038277,-1963.10853824,0.00038376,2]
[404844099,1770615038287,-150.0,0.00038482,2]
[404844101,1770615038296,-500.0,0.00038626,30]
[404844103,1770615038305,-160.0,0.00038776,2]
[404844105,1770615038314,-166.66,0.000389,30]
[404844107,1770615038323,-3463.42742698,0.0003899,2]
[404844109,1770615038332,-1843.84672819,0.0003899,2]
[404844111,1770615038342,-3349.5969184,0.0003899,2]
[404844113,1770615038351,-8678.01571523,0.0003899,2]
[404844115,1770615038361,-1295.73873761,0.00039,120]
[404844117,1770615038370,-188.20859541,0.0003908,2]
[404844119,1770615038380,-151.0,0.00039087,14]
[404844121,1770615038389,-1683.51186893,0.00039089,30]
[404844123,1770615038398,-487.0,0.0003909,2]
[404844124,1770615038408,-487.0,0.0003909,2]
[404844125,1770615038418,-487.0,0.0003909,2]
[404844126,1770615038427,-487.0,0.0003909,2]
[404844127,1770615038436,-487.0,0.0003909,2]
[404844128,1770615038446,-487.0,0.0003909,2]
[404844129,1770615038454,-781.63,0.0003909,2]
[404844130,1770615038464,-7033.23,0.000391,2]
[404844131,1770615038473,-250.0,0.00039145,2]
[404844132,1770615038482,-213.0,0.00039145,2]
[404844133,1770615038491,-718.55,0.00039183,120]